bitfinex-derivatives/quotes_ETHF0:USTF0_20210703
["timestamp","ask_amount","ask_price","bid_price","bid_amount"]
[1625331743011,5.65271962,2214.9,2214.8,2.20527]
[1625331743315,6.65271962,2214.9,2214.8,2.20527]
[1625331743413,3.20527,2214.9,2214.8,2.20527]
[1625331743710,2.20527,2214.9,2214.8,2.20527]
[1625331744945,4.85649114,2214.9,2214.8,2.20527]
[1625331746145,2.20527,2214.9,2214.8,2.20527]
[1625331747650,4.85621344,2214.9,2214.8,2.20527]
[1625331747949,2.20527,2214.9,2214.8,2.20527]
[1625331748050,3.20527,2214.9,2214.8,2.20527]
[1625331748602,6.65026333,2214.9,2214.8,2.20527]
[1625331750003,3.20527,2214.9,2214.8,2.20527]
[1625331753063,2.20527,2214.9,2214.8,2.20527]
[1625331753165,2.20527,2214.9,2214.8,4.79057]
[1625331753264,2.65102982,2215.0,2214.8,4.79057]
[1625331753564,2.65102982,2215.0,2214.8,21.213547]
[1625331755069,3.65102982,2215.0,2214.8,21.213547]
[1625331755369,2.64988488,2214.9,2214.8,21.213547]
[1625331755769,2.64994015,2215.0,2214.8,21.213547]
[1625331756228,4.85521015,2215.0,2214.8,21.213547]
[1625331756330,2.65005763,2214.9,2214.8,21.213547]
[1625331756782,4.85550991,2215.0,2214.8,21.213547]
[1625331757883,2.65028416,2214.9,2214.8,21.213547]
[1625331758184,3.65028416,2214.9,2214.8,21.213547]
[1625331758687,2.65028416,2214.9,2214.8,21.213547]
[1625331758838,5.64996633,2215.0,2214.8,21.213547]
[1625331758940,6.64996633,2215.0,2214.8,21.213547]
[1625331759190,2.65005462,2214.9,2214.8,21.213547]
[1625331759290,3.65005462,2214.9,2214.8,21.213547]
[1625331759393,1.0,2214.9,2214.8,21.213547]
[1625331759994,1.0,2214.9,2214.8,19.008277]
[1625331760191,3.20527,2214.9,2214.8,2.5853]
[1625331760292,3.20527,2214.9,2214.6,2.20527]
[1625331760797,2.64954764,2214.7,2214.6,2.20527]
[1625331761048,2.64966359,2214.8,2214.6,2.20527]
[1625331761152,3.64966359,2214.8,2214.6,18.482469]
[1625331762202,2.20527,2214.7,2214.6,18.482469]
[1625331762301,5.85484471,2214.7,2214.6,18.482469]
[1625331762452,3.64957471,2214.7,2214.6,18.482469]
[1625331763202,2.64957471,2214.7,2214.6,18.482469]
[1625331763906,2.64889243,2214.8,2214.6,18.482469]
[1625331764107,3.64889243,2214.8,2214.6,18.482469]
[1625331772800,2.64889243,2214.8,2214.6,18.482469]
[1625331773051,1.0,2214.7,2214.6,18.482469]
[1625331776860,3.65035693,2214.7,2214.6,18.482469]
[1625331779415,2.65035693,2214.7,2214.6,18.482469]
[1625331779868,3.65035693,2214.7,2214.6,18.482469]
[1625331781423,4.44368475,2214.7,2214.6,18.482469]
[1625331781771,1.0,2214.7,2214.6,18.482469]
[1625331782125,1.0,2214.7,2214.6,21.815569]
[1625331783134,4.4405231,2214.7,2214.6,21.815569]
[1625331784590,1.0,2214.7,2214.6,19.610299]
[1625331788508,4.43226817,2214.7,2214.6,19.610299]
[1625331788759,1.0,2214.7,2214.6,19.610299]
[1625331792475,4.43443747,2214.7,2214.6,19.610299]
[1625331794435,4.43443747,2214.7,2214.6,21.815569]
[1625331796752,1.0,2214.7,2214.6,21.815569]
[1625331809964,3.63631141,2214.7,2214.6,21.815569]
[1625331810365,1.0,2214.7,2214.6,21.815569]
[1625331810816,3.63626229,2214.7,2214.6,21.815569]
[1625331812169,2.63626229,2214.7,2214.6,21.815569]
[1625331813671,7.83774483,2214.9,2214.6,21.815569]
[1625331814275,6.25724286,2214.9,2214.6,21.815569]
[1625331814573,4.41054,2214.9,2214.6,21.815569]
[1625331814971,4.41054,2214.9,2214.6,24.020839]
[1625331822632,1.84673454,2215.1,2214.6,24.020839]
[1625331822733,1.84693331,2215.2,2214.6,24.020839]
[1625331823190,1.84693331,2215.2,2215.1,7.54844]
[1625331823388,1.84693331,2215.2,2215.1,23.984155]
[1625331824398,2.84693331,2215.2,2215.1,7.54844]
[1625331824497,1.0,2215.2,2215.1,7.54844]
[1625331825102,3.20527,2215.2,2215.1,7.54844]
[1625331825503,6.63147611,2215.2,2215.1,7.54844]
[1625331828364,3.20527,2215.2,2215.1,7.54844]
[1625331831526,2.20527,2215.2,2215.1,7.54844]
[1625331831778,5.63254375,2215.2,2215.1,7.54844]
[1625331832082,2.20527,2215.2,2215.1,7.54844]
[1625331832985,3.42786111,2215.3,2215.1,7.54844]
[1625331833185,1.84681741,2215.3,2215.1,7.54844]
[1625331833436,1.84681741,2215.3,2215.2,16.274872]
[1625331833536,1.84715993,2215.5,2215.2,16.274872]
[1625331835190,1.84715993,2215.5,2215.4,2.20527]
[1625331835292,1.84689841,2215.6,2215.4,2.20527]
[1625331835443,1.84689841,2215.6,2215.4,18.625105]
[1625331837154,1.84689841,2215.6,2215.5,2.20527]
[1625331837557,1.84689841,2215.6,2215.5,18.498786]
[1625331837859,2.84689841,2215.6,2215.5,18.498786]
[1625331837958,1.0,2215.6,2215.5,18.498786]
[1625331838358,1.0,2215.6,2214.6,2.7683]
[1625331838459,1.0,2215.6,2214.3,1.8671284]
[1625331838610,1.84499664,2215.3,2214.2,1.86709988]
[1625331839074,1.84499664,2215.3,2214.3,16.302894]
[1625331839160,4.42642233,2215.6,2215.1,2.20527]
[1625331839161,4.05010906,2215.2,2215.1,2.20527]
[1625331839470,2.20527,2215.2,2215.1,2.20527]
[1625331840222,4.04990706,2215.2,2215.1,2.20527]
[1625331840375,2.20527,2215.2,2215.1,2.20527]
[1625331841322,1.84520626,2215.4,2215.1,2.20527]
[1625331842075,1.84499052,2215.5,2215.1,2.20527]
[1625331842323,1.84499052,2215.5,2215.2,16.387013]
[1625331843224,1.84499052,2215.5,2215.4,2.20527]
[1625331843325,1.84499052,2215.5,2215.4,4.73747]
[1625331843524,1.84499052,2215.5,2215.4,21.252418]
[1625331844031,1.84740046,2215.6,2215.4,21.252418]
[1625331844285,1.84716762,2215.5,2215.4,21.252418]
[1625331844535,1.84809173,2215.6,2215.4,21.252418]
[1625331845283,1.84809173,2215.6,2215.5,2.20527]
[1625331845535,2.20527,2215.7,2215.5,2.20527]
[1625331847388,1.84824352,2215.6,2215.5,2.20527]
[1625331852864,4.05298174,2215.7,2215.5,2.20527]
[1625331854573,2.20527,2215.7,2215.5,2.20527]
[1625331854973,4.05318467,2215.8,2215.5,2.20527]
[1625331855524,2.20527,2215.8,2215.5,2.20527]
[1625331857837,3.20527,2215.8,2215.5,2.20527]
[1625331858442,5.05226006,2215.8,2215.5,2.20527]
[1625331859291,7.25753006,2215.8,2215.5,2.20527]
[1625331860546,1.84647241,2215.7,2215.5,2.20527]
[1625331860894,2.84647241,2215.7,2215.5,2.20527]
[1625331861294,1.318962,2215.6,2215.5,2.20527]
[1625331861543,2.31883049,2215.7,2215.5,2.20527]
[1625331861997,1.31881798,2215.6,2215.5,2.20527]
[1625331862348,2.31914186,2215.7,2215.5,2.20527]
[1625331862697,1.31914186,2215.7,2215.5,2.20527]
[1625331862797,2.31914186,2215.7,2215.5,2.20527]
[1625331864865,1.31914186,2215.7,2215.5,2.20527]
[1625331865719,2.31914186,2215.7,2215.5,2.20527]
[1625331865968,1.31914186,2215.7,2215.5,2.20527]
[1625331866327,2.31914186,2215.7,2215.5,2.20527]
[1625331869679,2.31914186,2215.7,2215.4,2.5322]
[1625331869778,2.31914186,2215.7,2214.5,14.9599]
[1625331870431,2.31914186,2215.7,2214.6,16.475486]
[1625331870633,1.31850076,2215.5,2214.6,16.475486]
[1625331870732,1.0,2215.4,2214.6,16.475486]
[1625331871391,2.20527,2215.2,2215.1,2.20527]
[1625331871489,3.20527,2215.2,2215.1,5.05227]
[1625331871688,3.20527,2215.2,2215.1,21.55836]
[1625331874740,2.20527,2215.2,2215.1,21.55836]
[1625331875241,3.20527,2215.2,2215.1,21.55836]
[1625331882344,2.20527,2215.2,2215.1,21.55836]
[1625331883995,3.20527,2215.2,2215.1,21.55836]
[1625331884948,2.20527,2215.2,2215.1,21.55836]
[1625331885195,3.20527,2215.2,2215.1,21.55836]
[1625331886498,2.20527,2215.2,2215.1,21.55836]
[1625331887101,2.31761606,2215.4,2215.1,21.55836]
[1625331887451,2.31761606,2215.4,2215.2,2.20527]
[1625331887952,2.31761606,2215.4,2214.5,14.9599]
[1625331888052,2.31761606,2215.4,2214.2,4.92931695]
[1625331888152,7.31761606,2215.4,2214.2,1.33211695]
[1625331888355,7.31761606,2215.4,2213.7,1.33284313]
[1625331888356,1.31625145,2214.8,2213.7,1.33284313]
[1625331888455,1.0,2214.7,2213.7,1.33284313]
[1625331888754,1.0,2214.7,2213.8,16.421883]
[1625331889220,2.31633515,2214.7,2213.8,16.421883]
[1625331889516,2.20527,2213.9,2213.8,18.627153]
[1625331889818,2.20527,2213.9,2213.8,2.20527]
[1625331890120,2.20527,2213.9,2213.8,18.609282]
[1625331890774,2.31633515,2214.7,2213.8,18.609282]
[1625331890873,2.31633515,2214.7,2213.8,22.195982]
[1625331891121,1.31633515,2214.7,2213.8,22.195982]
[1625331891521,1.31633515,2214.7,2214.6,2.20527]
[1625331891622,1.31633515,2214.7,2214.6,5.97997]
[1625331891725,1.31657585,2214.8,2214.6,5.97997]
[1625331891821,1.31657585,2214.8,2214.6,22.452901]
[1625331892074,3.42309721,2215.3,2214.6,22.452901]
[1625331892372,3.42309721,2215.3,2215.1,1.15]
[1625331892474,4.42830158,2215.9,2215.1,4.6881]
[1625331892622,4.42830158,2215.9,2215.2,16.352573]
[1625331893227,1.0,2215.9,2215.2,16.352573]
[1625331893576,1.0,2215.9,2215.8,4.41054]
[1625331893724,1.0,2215.9,2215.8,6.73224]
[1625331893824,1.0,2215.9,2215.8,23.248463]
[1625331895581,3.20527,2215.9,2215.8,23.248463]
[1625331896980,1.0,2215.9,2215.8,23.248463]
[1625331897092,3.43389791,2216.1,2215.8,23.248463]
[1625331897383,3.20527,2216.2,2215.8,23.248463]
[1625331899141,2.0,2216.0,2215.8,21.043193]
[1625331899250,2.0,2216.0,2215.8,18.721493]
[1625331899556,2.20527,2215.9,2215.8,9.066823]
[1625331899649,6.25267,2215.9,2215.8,9.066823]
[1625331899748,6.25267,2215.9,2214.2,3.46559764]
[1625331899949,7.14237,2215.9,2214.0,3.46600405]
[1625331900352,3.43240324,2215.7,2213.9,3.46620901]
[1625331900449,1.0,2215.6,2214.5,16.398438]
[1625331900650,3.43195194,2215.5,2214.5,16.398438]
[1625331900799,3.9511,2215.4,2214.5,16.398438]
[1625331901002,7.3820305,2215.4,2214.5,16.398438]
[1625331901502,2.20527,2214.7,2214.6,2.20527]
[1625331901762,2.20527,2214.7,2214.6,18.486453]
[1625331902003,2.20527,2214.7,2214.6,2.20527]
[1625331902252,2.20527,2214.7,2214.6,18.719141]
[1625331902453,1.0,2215.1,2214.6,18.719141]
[1625331902554,1.0,2215.1,2214.6,22.283641]
[1625331903619,3.20527,2215.1,2215.0,2.20527]
[1625331903868,3.20527,2215.1,2215.0,18.454248]
[1625331905922,3.20527,2215.1,2215.0,21.920248]
[1625331906174,3.42959408,2215.4,2215.0,21.920248]
[1625331906423,3.43137397,2215.8,2215.0,21.920248]
[1625331907174,1.0,2215.7,2215.0,21.920248]
[1625331907327,3.43137397,2215.8,2215.0,21.920248]
[1625331907574,3.43137397,2215.8,2215.7,4.41054]
[1625331907674,1.0,2216.0,2215.7,8.00404]
[1625331907876,1.0,2216.0,2215.7,24.254637]
[1625331917432,2.0,2216.0,2215.7,24.254637]
[1625331917683,2.20527,2215.8,2215.7,8.00404]
[1625331917783,3.20527,2215.8,2215.7,8.00404]
[1625331917885,3.20527,2215.8,2215.0,3.466]
[1625331918034,3.20527,2215.8,2214.5,14.1001]
[1625331918436,6.62809434,2215.8,2214.5,14.1001]
[1625331918537,6.62809434,2215.8,2214.6,16.34326]
[1625331919236,3.42159376,2215.4,2214.6,16.34326]
[1625331919336,1.0,2215.3,2214.5,14.1001]
[1625331919690,4.41054,2214.6,2214.5,14.1001]
[1625331919788,5.41054,2214.6,2214.3,2.20527]
[1625331920037,4.41054,2214.6,2214.3,2.20527]
[1625331920137,5.41054,2214.6,2214.3,2.20527]
[1625331920838,4.41054,2214.6,2214.3,2.20527]
[1625331921039,2.20527,2214.6,2214.3,2.20527]
[1625331921394,2.20527,2214.6,2214.4,16.256613]
[1625331921540,3.20527,2214.6,2214.4,18.943413]
[1625331921648,3.20527,2214.6,2214.4,21.148683]
[1625331922746,3.42092135,2215.4,2214.4,21.148683]
[1625331922846,1.0,2215.3,2214.4,21.148683]
[1625331923546,3.42120669,2215.5,2214.4,21.148683]
[1625331923649,3.42120669,2215.5,2215.4,2.20527]
[1625331923747,5.62701934,2215.6,2215.4,5.46297]
[1625331924000,5.62701934,2215.6,2215.4,21.762039]
[1625331924206,3.42174934,2215.6,2215.4,21.762039]
[1625331924608,3.42244805,2215.9,2215.4,21.762039]
[1625331924961,4.42244805,2215.9,2215.4,21.762039]
[1625331925267,1.0,2215.9,2215.4,21.762039]
[1625331925725,3.20527,2215.9,2215.8,2.20527]
[1625331926175,3.20527,2215.9,2215.4,5.46297]
[1625331926774,3.20527,2215.9,2215.5,16.422323]
[1625331927776,3.20527,2215.9,2215.7,2.20527]
[1625331928130,3.20527,2215.9,2215.8,16.43655]
[1625331928281,1.0,2215.9,2215.8,16.43655]
[1625331929084,2.0,2215.9,2215.8,16.43655]
[1625331930291,5.42684697,2215.9,2215.8,16.43655]
[1625331930640,2.0,2215.9,2215.8,16.43655]
[1625331931742,5.42604724,2215.9,2215.8,16.43655]
[1625331932091,2.0,2215.9,2215.8,16.43655]
[1625331936572,5.42476105,2215.9,2215.8,16.43655]
[1625331936872,2.0,2215.9,2215.8,16.43655]
[1625331938226,5.42447918,2215.9,2215.8,16.43655]
[1625331938728,2.0,2215.9,2215.8,16.43655]
[1625331939631,5.42448816,2215.9,2215.8,16.43655]
[1625331941792,2.0,2215.9,2215.8,16.43655]
[1625331942191,5.4230934,2215.9,2215.8,16.43655]
[1625331945149,5.4230934,2215.9,2215.7,2.20527]
[1625331945600,3.42245236,2215.8,2215.7,2.20527]
[1625331945699,4.42245236,2215.8,2215.7,2.20527]
[1625331945800,1.0,2215.8,2215.7,2.20527]
[1625331945900,3.20527,2215.8,2215.7,2.20527]
[1625331949079,2.20527,2215.8,2215.7,2.20527]
[1625331949978,5.42260259,2215.9,2215.7,2.20527]
[1625331950379,5.42260259,2215.9,2215.8,16.397787]
[1625331951434,2.0,2215.9,2215.8,16.397787]
[1625331951582,1.0,2215.9,2215.8,16.397787]
[1625331951886,2.0,2215.9,2215.8,18.603057]
[1625331960867,1.0,2215.9,2215.8,18.603057]
[1625331961070,3.63348798,2215.9,2215.8,18.603057]
[1625331961623,1.0,2215.9,2215.8,18.603057]
[1625331963485,3.63352598,2215.9,2215.8,18.603057]
[1625331966395,1.0,2215.9,2215.8,18.603057]
[1625331970803,0.0001,2215.9,2215.8,18.603057]
[1625331970903,2.63733188,2216.1,2215.8,18.603057]
[1625331971005,2.64034785,2216.3,2215.8,18.603057]
[1625331971306,2.64131421,2216.5,2215.8,18.603057]
[1625331971756,6.60328554,2217.4,2215.8,18.603057]
[1625331971757,3.43312683,2216.8,2215.8,18.603057]
[1625331972062,3.43367791,2217.0,2215.8,18.603057]
[1625331972156,5.63894791,2217.0,2216.7,7.78724]
[1625331972462,5.63894791,2217.0,2216.8,16.327925]
[1625331972561,2.20527,2217.0,2216.8,16.327925]
[1625331985115,3.20527,2217.0,2216.8,16.327925]
[1625331986279,3.20527,2217.0,2216.7,7.78724]
[1625331986380,3.20527,2217.0,2216.7,4.41054]
[1625331987984,2.20527,2217.0,2216.7,4.41054]
[1625331988285,2.20527,2217.0,2216.8,16.376432]
[1625331988387,2.20527,2217.0,2216.8,19.788432]
[1625331991293,3.42771542,2217.8,2216.8,19.788432]
[1625331991795,4.42771542,2217.8,2216.8,19.788432]
[1625331991895,1.0,2217.8,2216.8,19.788432]
[1625331992198,1.0,2217.8,2217.7,4.41054]
[1625331992551,1.0,2217.8,2217.7,20.774247]
[1625331994049,3.42720606,2218.1,2217.7,20.774247]
[1625331994200,3.42720606,2218.1,2218.0,2.20527]
[1625331994299,4.42720606,2218.1,2218.0,2.20527]
[1625331994500,4.42720606,2218.1,2218.0,1.13575166]
[1625331995904,1.0,2218.1,2218.0,1.13575166]
[1625331996254,4.42524357,2218.1,2218.0,1.13575166]
[1625331996505,4.42524357,2218.1,2218.0,17.57482566]
[1625331996608,1.0,2218.1,2218.0,17.57482566]
[1625332002278,1.0,2218.1,2218.0,1.13575166]
[1625332004292,1.0,2218.1,2217.7,2.20527]
[1625332004892,1.0,2218.1,2217.8,16.330078]
[1625332006295,2.20527,2217.9,2217.8,16.330078]
[1625332007144,3.20527,2217.9,2217.8,16.330078]
[1625332007747,2.20527,2217.9,2217.8,16.330078]
[1625332008899,3.20527,2217.9,2217.8,16.330078]
[1625332015617,1.0,2217.9,2217.7,2.20527]
[1625332015716,1.0,2217.8,2217.7,2.20527]
[1625332015814,3.42491236,2218.6,2217.7,2.20527]
[1625332016365,2.20527,2218.4,2218.3,2.20527]
[1625332016766,2.20527,2218.4,2218.3,1.13587751]
[1625332016967,3.20527,2218.4,2218.3,1.13587751]
[1625332018369,5.41054,2218.4,2218.3,1.13587751]
[1625332022125,5.41054,2218.4,2218.3,3.41247751]
[1625332029415,5.41054,2218.4,2218.3,1.13587751]
[1625332029517,5.41054,2218.4,2214.8,6.21304007]
[1625332029668,5.41054,2218.4,2216.0,0.8974]
[1625332029968,3.4235759,2218.3,2216.0,0.8974]
[1625332030115,1.0,2218.2,2216.7,1.15]
[1625332030417,2.20527,2217.9,2217.8,2.20527]
[1625332030570,3.20527,2217.9,2217.8,2.20527]
[1625332031668,3.20527,2217.9,2216.7,1.15]
[1625332032272,3.20527,2217.9,2216.8,16.243223]
[1625332032472,2.20527,2217.4,2217.3,2.20527]
[1625332032622,3.20527,2217.4,2217.3,2.20527]
[1625332034478,5.41054,2217.4,2217.3,2.20527]
[1625332037133,4.41054,2217.4,2217.3,2.20527]
[1625332037785,4.41054,2217.4,2217.3,18.475003]
[1625332038544,2.20527,2217.4,2217.3,18.475003]
[1625332038895,1.0,2217.6,2217.3,18.475003]
[1625332039547,2.20527,2217.8,2217.3,18.475003]
[1625332039849,3.42901996,2218.3,2217.3,18.475003]
[1625332040552,2.20527,2218.0,2217.9,2.20527]
[1625332040703,3.20527,2218.0,2217.9,5.70307]
[1625332042406,2.20527,2218.0,2217.9,5.70307]
[1625332042506,2.20527,2218.0,2217.9,7.90834]
[1625332043661,2.20527,2218.0,2217.9,24.385932]
[1625332044013,3.20527,2218.2,2217.9,24.385932]
[1625332049170,2.20527,2218.2,2217.9,24.385932]
[1625332049470,3.20527,2218.2,2217.9,24.385932]
[1625332050269,2.20527,2218.2,2217.9,24.385932]
[1625332051325,3.20527,2218.2,2217.9,24.385932]
[1625332051871,2.20527,2218.2,2217.9,24.385932]
[1625332053173,3.20527,2218.2,2217.9,7.90834]
[1625332054078,6.64886146,2218.2,2217.9,7.90834]
[1625332054579,2.20527,2218.0,2217.9,7.90834]
[1625332054682,3.20527,2218.0,2217.9,7.90834]
[1625332055831,6.64994816,2218.0,2217.9,7.90834]
[1625332056231,9.73884816,2218.0,2217.9,4.41054]
[1625332056631,6.29417,2218.0,2217.9,3.34109234]
[1625332057932,11.59297921,2218.0,2217.9,3.34109234]
[1625332059589,6.29417,2218.0,2217.9,3.34109234]
[1625332060592,3.20527,2218.0,2217.9,3.34109234]
[1625332061353,4.54214245,2218.0,2217.9,3.34109234]
[1625332062457,3.20527,2218.0,2217.9,3.34109234]
[1625332062857,4.54212354,2218.0,2217.9,3.34109234]
[1625332063059,3.54212354,2218.0,2217.9,3.34109234]
[1625332063310,2.20527,2218.0,2217.9,3.34109234]
[1625332067024,5.65692189,2218.0,2217.9,3.34109234]
[1625332067375,2.20527,2218.0,2217.9,3.34109234]
[1625332068729,5.65768711,2218.0,2217.9,3.34109234]
[1625332068832,7.55648711,2218.0,2217.8,2.7529]
[1625332068929,6.65768711,2218.0,2216.7,1.15]
[1625332069030,7.45259609,2218.0,2216.7,1.15]
[1625332069381,3.45037611,2217.7,2216.7,1.15]
[1625332069480,1.0,2217.6,2216.7,1.15]
[1625332069582,1.0,2217.6,2216.8,16.400319]
[1625332069683,4.45014518,2217.6,2216.8,16.400319]
[1625332069933,7.90005895,2217.6,2216.8,16.400319]
[1625332070634,2.20527,2217.2,2217.1,2.20527]
[1625332072185,4.0633108,2217.2,2217.1,2.20527]
[1625332072636,6.2685808,2217.2,2217.1,2.20527]
[1625332074388,4.41054,2217.2,2217.1,2.20527]
[1625332078097,6.26774506,2217.2,2217.1,2.20527]
[1625332080753,4.06247506,2217.2,2217.1,2.20527]
[1625332082660,6.26774506,2217.2,2217.1,2.20527]
[1625332083219,4.41054,2217.2,2217.1,2.20527]
[1625332085126,6.26990738,2217.2,2217.1,2.20527]
[1625332085477,4.41054,2217.2,2217.1,2.20527]
[1625332085678,6.26997396,2217.2,2217.1,2.20527]
[1625332086177,4.41054,2217.2,2217.1,2.20527]
[1625332087080,7.12964,2217.2,2217.1,2.20527]
[1625332088886,4.41054,2217.2,2217.1,2.20527]
[1625332089939,6.27020733,2217.2,2217.1,2.20527]
[1625332091544,8.92665549,2217.2,2217.1,2.20527]
[1625332091847,7.06698816,2217.2,2217.1,2.20527]
[1625332092846,4.41054,2217.2,2217.1,2.20527]
[1625332094150,4.41054,2217.2,2217.1,5.67907]
[1625332096753,5.41054,2217.2,2217.1,5.67907]
[1625332098174,4.41054,2217.2,2217.1,5.67907]
[1625332099124,5.41054,2217.2,2217.1,5.67907]
[1625332100075,4.41054,2217.2,2217.1,5.67907]
[1625332101133,5.41054,2217.2,2217.1,5.67907]
[1625332101433,8.87171341,2217.2,2217.1,5.67907]
[1625332102130,5.41054,2217.2,2217.1,5.67907]
[1625332106835,4.41054,2217.2,2217.1,5.67907]
[1625332107085,5.41054,2217.2,2217.1,5.67907]
[1625332107990,4.41054,2217.2,2217.1,5.67907]
[1625332108191,5.41054,2217.2,2217.1,5.67907]
[1625332110655,8.87814388,2217.2,2217.1,5.67907]
[1625332111007,12.25914388,2217.2,2217.1,2.20527]
[1625332111106,12.25914388,2217.2,2216.2,16.49873616]
[1625332111612,4.53470729,2216.9,2216.2,14.6316]
[1625332111759,2.86725628,2216.8,2216.3,16.332407]
[1625332112159,5.53477384,2216.8,2216.3,16.332407]
[1625332112811,4.41054,2216.4,2216.3,18.537677]
[1625332114773,5.53477384,2216.8,2216.3,18.537677]
[1625332114923,2.20527,2216.7,2216.3,21.470677]
[1625332116831,2.20527,2216.7,2216.6,2.20527]
[1625332117135,2.20527,2216.7,2216.6,18.713167]
[1625332118536,4.07230025,2216.9,2216.6,18.713167]
[1625332118735,2.20527,2216.9,2216.6,18.713167]
[1625332118835,2.20527,2216.9,2216.7,2.20527]
[1625332119135,2.20527,2216.9,2216.8,16.45039]
[1625332119285,2.20527,2216.9,2216.8,18.75789]
[1625332129018,2.20527,2216.9,2216.8,18.89153746]
[1625332130018,2.20527,2217.1,2216.8,18.89153746]
[1625332130119,4.53402495,2217.6,2216.8,23.89153746]
[1625332130220,4.53402495,2217.6,2216.8,24.80323746]
[1625332130472,4.53330155,2217.8,2217.3,1.15]
[1625332130619,4.53330155,2217.8,2217.3,3.5941]
[1625332130820,4.53330155,2217.8,2217.4,16.343942]
[1625332130921,4.53330155,2217.8,2217.7,4.41054]
[1625332131321,1.86665358,2217.8,2217.7,4.41054]
[1625332131570,4.5326998,2217.8,2217.7,4.41054]
[1625332131872,4.46586009,2218.0,2217.7,4.41054]
[1625332131873,3.46598928,2217.9,2217.7,4.41054]
[1625332132171,4.46589567,2218.0,2217.7,4.41054]
[1625332132478,3.46593685,2217.9,2217.7,4.41054]
[1625332133276,6.67088249,2218.0,2217.7,4.41054]
[1625332134186,2.66582295,2217.8,2217.7,4.41054]
[1625332140263,3.66582295,2217.8,2217.7,4.41054]
[1625332141465,2.66582295,2217.8,2217.7,4.41054]
[1625332143417,3.19759133,2217.8,2217.7,4.41054]
[1625332143822,2.66474152,2217.8,2217.7,4.41054]
[1625332144169,3.66472787,2217.9,2217.7,4.41054]
[1625332144520,1.86512746,2217.8,2217.7,4.41054]
[1625332147171,3.1972057,2217.8,2217.7,4.41054]
[1625332147723,1.86512746,2217.8,2217.7,4.41054]
[1625332149138,3.19701562,2217.8,2217.7,4.41054]
[1625332149495,1.86512746,2217.8,2217.7,4.41054]
[1625332151350,1.86512746,2217.8,2217.7,7.86084]
[1625332151550,3.19693244,2217.8,2217.7,7.86084]
[1625332151800,1.33180498,2217.8,2217.7,7.86084]
[1625332155659,3.93260498,2217.8,2216.9,1.32772158]
[1625332155859,4.93260498,2217.8,2216.9,1.32772158]
[1625332155960,1.33181459,2217.3,2216.4,1.329386]
[1625332156061,1.0,2217.2,2216.4,1.329386]
[1625332156462,2.33186812,2217.2,2216.3,1.32982145]
[1625332156563,2.33186812,2217.2,2216.5,16.345332]
[1625332156765,1.33189527,2217.1,2216.5,16.345332]
[1625332156861,1.0,2217.0,2216.4,16.38436]
[1625332157063,1.0,2217.0,2216.3,16.337767]
[1625332157164,3.20527,2217.0,2216.9,2.20527]
[1625332159116,5.41054,2217.0,2216.9,2.20527]
[1625332161025,3.20527,2217.0,2216.9,2.20527]
[1625332169056,1.33185281,2217.2,2216.9,2.20527]
[1625332169158,4.19651317,2217.2,2216.9,5.27757]
[1625332169256,4.19651317,2217.2,2217.1,2.20527]
[1625332169567,1.0,2217.2,2217.1,2.20527]
[1625332169965,1.33181965,2217.3,2217.1,18.683668]
[1625332170265,1.0,2217.2,2217.1,18.683668]
[1625332171318,1.3317475,2217.4,2217.1,18.683668]
[1625332171469,2.3317475,2217.4,2217.1,18.683668]
[1625332171867,1.0,2217.4,2217.1,18.683668]
[1625332173220,1.0,2217.4,2217.3,2.20527]
[1625332175876,2.33174128,2217.4,2217.3,2.20527]
[1625332176230,1.0,2217.4,2217.3,2.20527]
[1625332178299,2.33174637,2217.4,2217.3,2.20527]
[1625332178752,1.0,2217.4,2217.3,2.20527]
[1625332179554,2.33178135,2217.4,2217.3,2.20527]
[1625332180909,1.0,2217.4,2217.3,2.20527]
[1625332183967,2.33177601,2217.4,2217.3,2.20527]
[1625332187673,2.33177601,2217.4,2217.3,5.52157]
[1625332188978,1.33177601,2217.4,2217.3,5.52157]
[1625332189279,1.33177601,2217.4,2217.3,21.9656]
[1625332189378,1.0,2217.6,2217.3,21.9656]
[1625332189977,2.33182526,2217.6,2217.3,21.9656]
[1625332190928,1.33188796,2217.5,2217.3,21.9656]
[1625332191027,1.0,2217.4,2217.3,21.9656]
[1625332192132,2.33198009,2217.4,2217.3,21.9656]
[1625332193546,2.33198009,2217.4,2217.3,5.52157]
[1625332193999,2.33198009,2217.4,2217.3,21.851935]
[1625332194649,4.19690162,2217.4,2217.3,21.851935]
[1625332195150,4.19690162,2217.4,2217.3,5.52157]
[1625332195700,1.0,2217.4,2217.3,5.52157]
[1625332197354,3.20527,2217.4,2217.3,5.52157]
[1625332197806,4.10157,2217.4,2217.3,5.52157]
[1625332197953,3.20527,2217.4,2217.3,5.52157]
[1625332207076,6.67093893,2217.4,2217.3,5.52157]
[1625332212502,3.20527,2217.4,2217.3,5.52157]
[1625332219628,1.0,2217.4,2217.3,5.52157]
[1625332219781,3.66581618,2217.4,2217.3,5.52157]
[1625332219877,2.66581618,2217.4,2217.3,5.52157]
[1625332222135,5.86497862,2217.4,2217.3,5.52157]
[1625332222486,2.66581618,2217.4,2217.3,5.52157]
[1625332223290,4.46556104,2217.6,2217.3,5.52157]
[1625332223489,4.46556104,2217.6,2217.5,2.20527]
[1625332226098,1.0,2217.6,2217.5,2.20527]
[1625332226696,4.46623986,2217.6,2217.5,2.20527]
[1625332227457,1.0,2217.6,2217.5,2.20527]
[1625332238484,5.2683486,2217.6,2217.5,2.20527]
[1625332241012,1.0,2217.6,2217.5,2.20527]
[1625332249676,3.20527,2217.6,2217.5,2.20527]
[1625332252433,8.54440736,2217.6,2217.5,2.20527]
[1625332253139,3.20527,2217.6,2217.5,2.20527]
[1625332255838,6.88567,2217.6,2217.5,2.20527]